fUSD/lending_fUSD_20240319
["ID","MTS","AMOUNT","RATE_DAILY","PERIOD"]
[319594815,1710885075830,-500.0,0.00030958,2]
[319594816,1710885075839,-500.0,0.00030958,2]
[319594817,1710885075849,-502.25,0.00030958,2]
[319594818,1710885075858,-583.52,0.00030958,2]
[319594819,1710885075868,-185.66268854,0.00030958,2]
[319594820,1710885075877,-500.0,0.00030958,2]
[319594821,1710885075886,-500.0,0.00030958,2]
[319594822,1710885075895,-701.32,0.00030958,2]
[319594823,1710885075905,-845.97,0.00030958,2]
[319594824,1710885075915,-500.0,0.00030958,2]
[319594825,1710885075924,-604.6,0.00030958,2]
[319594826,1710885075934,-500.0,0.00030958,2]
[319594827,1710885075944,-626.44,0.00030958,2]
[319594828,1710885075953,-500.0,0.00030958,2]
[319594829,1710885075963,-500.0,0.00030958,2]
[319594830,1710885075973,-1296.65,0.00030958,2]
[319594831,1710885075983,-500.0,0.00030958,2]
[319594832,1710885075993,-1134.53,0.00030958,2]
[319594833,1710885076003,-500.0,0.00030958,2]
[319594834,1710885076012,-500.0,0.00030958,2]
[319594835,1710885076034,-507.2,0.00030958,2]
[319594836,1710885076044,-783.57,0.00030958,2]
[319594837,1710885076054,-1022.89,0.00030958,2]
[319594838,1710885076065,-668.88,0.00030958,2]
[319594839,1710885076076,-500.0,0.00030958,2]
[319594840,1710885076086,-500.0,0.00030958,2]
[319594841,1710885076096,-597.77,0.00030958,2]
[319594842,1710885076106,-500.0,0.00030958,2]
[319594843,1710885076115,-500.0,0.00030958,2]
[319594844,1710885076125,-500.0,0.00030958,2]
[319594845,1710885076135,-1578.12,0.00030958,2]
[319594846,1710885076146,-1317.95,0.00030958,2]
[319594847,1710885076156,-500.0,0.00030958,2]
[319594848,1710885076166,-500.0,0.00030958,2]
[319594849,1710885076175,-500.0,0.00030958,2]
[319594850,1710885076185,-235.96663019,0.00030958,2]
[319594851,1710885076195,-706.81,0.00030958,2]
[319594852,1710885076206,-500.0,0.00030958,2]
[319594853,1710885076216,-820.72,0.00030958,2]
[319594854,1710885076226,-500.0,0.00030958,2]
[319594855,1710885076236,-511.35,0.00030958,2]
[319594856,1710885076247,-500.0,0.00030958,2]
[319594857,1710885076257,-1159.47,0.00030958,2]
[319594858,1710885076267,-752.64,0.00030958,2]
[319594859,1710885076277,-1433.6,0.00030958,2]
[319594860,1710885076287,-500.0,0.00030958,2]
[319594861,1710885076297,-500.0,0.00030958,2]
[319594862,1710885076307,-500.0,0.00030958,2]
[319594863,1710885076317,-500.0,0.00030958,2]
[319594864,1710885076328,-1189.27,0.00030958,2]
[319594865,1710885076339,-500.0,0.00030958,2]
[319594866,1710885076348,-500.0,0.00030958,2]
[319594867,1710885076358,-572.14,0.00030958,2]
[319594868,1710885076369,-1127.91,0.00030958,2]
[319594869,1710885076379,-729.46,0.00030958,2]
[319594870,1710885076390,-500.0,0.00030958,2]
[319594871,1710885076401,-500.0,0.00030958,2]
[319594872,1710885076411,-1199.62,0.00030958,2]
[319594873,1710885076421,-562.99,0.00030958,2]
[319594874,1710885076432,-786.3,0.00030958,2]
[319594875,1710885076442,-500.0,0.00030958,2]
[319594876,1710885076455,-500.0,0.00030958,2]
[319594877,1710885076465,-1265.95,0.00030958,2]
[319594878,1710885076475,-500.0,0.00030958,2]
[319594879,1710885076485,-580.29,0.00030958,2]
[319594880,1710885076496,-500.0,0.00030958,2]
[319594881,1710885076506,-500.0,0.00030958,2]
[319594882,1710885076516,-500.0,0.00030958,2]
[319594883,1710885076526,-2136.15,0.00030958,2]
[319594884,1710885076536,-718.68,0.00030958,2]
[319594885,1710885076546,-928.05,0.00030958,2]
[319594886,1710885076556,-500.0,0.00030958,2]
[319594887,1710885076567,-783.9,0.00030958,2]
[319594888,1710885076578,-1320.02,0.00030958,2]
[319594889,1710885076588,-1043.02,0.00030958,2]
[319594890,1710885076598,-802.08,0.00030958,2]
[319594891,1710885076608,-500.0,0.00030958,2]
[319594892,1710885076619,-500.0,0.00030958,2]
[319594893,1710885076629,-1028.49,0.00030958,2]
[319594894,1710885076639,-1179.51,0.00030958,2]
[319594895,1710885076649,-812.3,0.00030958,2]
[319594896,1710885076659,-1146.04,0.00030958,2]
[319594897,1710885076669,-500.0,0.00030958,2]
[319594898,1710885076679,-500.0,0.00030958,2]
[319594899,1710885076689,-1045.71,0.00030958,2]
[319594900,1710885076699,-500.0,0.00030958,2]
[319594901,1710885076709,-500.0,0.00030958,2]
[319594902,1710885076719,-530.67,0.00030958,2]
[319594903,1710885076729,-649.64,0.00030958,2]
[319594904,1710885076740,-500.0,0.00030958,2]
[319594905,1710885076750,-500.0,0.00030958,2]
[319594906,1710885076761,-500.0,0.00030958,2]
[319594907,1710885076774,-500.0,0.00030958,2]
[319594908,1710885076784,-500.0,0.00030958,2]
[319594909,1710885076794,-500.0,0.00030958,2]
[319594910,1710885076803,-500.0,0.00030958,2]
[319594911,1710885076813,-500.0,0.00030958,2]
[319594912,1710885076824,-500.0,0.00030958,2]
[319594913,1710885076834,-500.0,0.00030958,2]
[319594914,1710885076843,-775.28,0.00030958,2]
[319594915,1710885076853,-897.58,0.00030958,2]
[319594916,1710885076862,-1675.73,0.00030958,2]
[319594917,1710885076872,-937.79,0.00030958,2]
[319594918,1710885076882,-500.0,0.00030958,2]
[319594919,1710885076891,-500.0,0.00030958,2]
[319594920,1710885076901,-734.15,0.00030958,2]
[319594921,1710885076910,-500.0,0.00030958,2]
[319594922,1710885076919,-1431.93,0.00030958,2]
[319594923,1710885076929,-530.51,0.00030958,2]
[319594924,1710885076939,-1508.78,0.00030958,2]
[319594925,1710885076949,-500.0,0.00030958,2]
[319594926,1710885076959,-500.0,0.00030958,2]
[319594927,1710885076969,-500.0,0.00030958,2]
[319594928,1710885076979,-500.0,0.00030958,2]
[319594929,1710885076988,-500.0,0.00030958,2]
[319594930,1710885076999,-500.0,0.00030958,2]
[319594931,1710885077009,-500.0,0.00030958,2]
[319594932,1710885077018,-621.71,0.00030958,2]
[319594933,1710885077029,-3024.0,0.00030958,2]
[319594934,1710885077039,-571.47,0.00030958,2]
[319594935,1710885077050,-500.0,0.00030958,2]
[319594936,1710885077060,-538.79,0.00030958,2]
[319594937,1710885077071,-762.86,0.00030958,2]
[319594938,1710885077082,-985.89,0.00030958,2]
[319594939,1710885077091,-500.0,0.00030958,2]
[319594940,1710885077101,-1947.91,0.00030958,2]
[319594941,1710885077111,-863.2,0.00030958,2]
[319594942,1710885077121,-162.68609101,0.00030958,2]
[319594943,1710885077131,-500.0,0.00030958,2]
[319594944,1710885077141,-500.0,0.00030958,2]
[319594945,1710885077152,-747.16,0.00030958,2]
[319594946,1710885077162,-538.79,0.00030958,2]
[319594947,1710885077172,-772.61,0.00030958,2]
[319594948,1710885077182,-500.0,0.00030958,2]
[319594949,1710885077192,-500.0,0.00030958,2]
[319594950,1710885077201,-500.0,0.00030958,2]
[319594951,1710885077211,-500.0,0.00030958,2]
[319594952,1710885077220,-500.0,0.00030958,2]
[319594953,1710885077230,-500.0,0.00030958,2]
[319594954,1710885077239,-1767.34,0.00030958,2]
[319594955,1710885077249,-500.0,0.00030958,2]
[319594956,1710885077259,-500.0,0.00030958,2]
[319594957,1710885077269,-500.0,0.00030958,2]
[319594958,1710885077279,-1603.73,0.00030958,2]
[319594959,1710885077289,-500.0,0.00030958,2]
[319594960,1710885077299,-175.53460608,0.00030958,2]
[319594961,1710885077309,-500.0,0.00030958,2]
[319594962,1710885077319,-500.0,0.00030958,2]
[319594963,1710885077330,-892.48,0.00030958,2]
[319594964,1710885077340,-1478.75,0.00030958,2]
[319594965,1710885077351,-654.11,0.00030958,2]
[319594966,1710885077360,-500.0,0.00030958,2]
[319594967,1710885077371,-500.0,0.00030958,2]
[319594968,1710885077381,-1208.68,0.00030958,2]
[319594969,1710885077391,-500.0,0.00030958,2]
[319594970,1710885077400,-500.0,0.00030958,2]
[319594971,1710885077410,-500.0,0.00030958,2]
[319594972,1710885077420,-1428.4,0.00030958,2]
[319594973,1710885077430,-1477.07,0.00030958,2]
[319594974,1710885077440,-500.0,0.00030958,2]
[319594975,1710885077450,-500.0,0.00030958,2]
[319594976,1710885077460,-526.9,0.00030958,2]
[319594977,1710885077471,-500.0,0.00030958,2]
[319594978,1710885077481,-2930.57,0.00030958,2]
[319594979,1710885077491,-500.0,0.00030958,2]
[319594980,1710885077500,-948.83,0.00030958,2]
[319594981,1710885077510,-500.0,0.00030958,2]
[319594982,1710885077521,-500.0,0.00030958,2]
[319594983,1710885077531,-1084.77,0.00030958,2]
[319594984,1710885077541,-500.0,0.00030958,2]
[319594985,1710885077553,-500.0,0.00030958,2]
[319594986,1710885077564,-500.0,0.00030958,2]
[319594987,1710885077575,-500.0,0.00030958,2]
[319594988,1710885077584,-500.0,0.00030958,2]
[319594989,1710885077594,-1970.31,0.00030958,2]
[319594990,1710885077603,-1046.29,0.00030958,2]
[319594991,1710885077613,-853.25,0.00030958,2]
[319594992,1710885077622,-748.56,0.00030958,2]
[319594993,1710885077632,-608.95,0.00030958,2]
[319594994,1710885077642,-500.0,0.00030958,2]
[319594995,1710885077652,-636.98,0.00030958,2]
[319594996,1710885077662,-500.0,0.00030958,2]
[319594997,1710885077672,-500.0,0.00030958,2]
[319594998,1710885077682,-1279.27,0.00030958,2]
[319594999,1710885077692,-500.0,0.00030958,2]
[319595000,1710885077702,-1827.01,0.00030958,2]
[319595001,1710885077712,-500.0,0.00030958,2]
[319595002,1710885077722,-1006.11,0.00030958,2]
[319595003,1710885077732,-570.82136937,0.00030958,2]
[319595004,1710885077743,-500.0,0.00030958,2]
[319595005,1710885077754,-500.0,0.00030958,2]
[319595006,1710885077763,-500.0,0.00030958,2]
[319595007,1710885077773,-1949.93,0.00030958,2]
[319595008,1710885077783,-1192.24,0.00030958,2]
[319595009,1710885077792,-455.07810575,0.00030958,2]
[319595010,1710885077802,-2813.53,0.00030958,2]
[319595011,1710885077811,-845.98,0.00030958,2]
[319595012,1710885077821,-1011.35,0.00030958,2]
[319595013,1710885077831,-500.0,0.00030958,2]
[319595014,1710885077840,-1701.68,0.00030958,2]
[319595015,1710885077849,-1413.56,0.00030958,2]
[319595016,1710885077859,-500.0,0.00030958,2]
[319595017,1710885077868,-671.21,0.00030958,2]
[319595018,1710885077877,-856.2,0.00030958,2]
[319595019,1710885077886,-500.0,0.00030958,2]
[319595020,1710885077896,-500.0,0.00030958,2]
[319595021,1710885077906,-1896.31,0.00030958,2]
[319595022,1710885077915,-500.0,0.00030958,2]
[319595023,1710885077925,-2782.61,0.00030958,2]
[319595024,1710885077934,-500.0,0.00030958,2]
[319595025,1710885077944,-500.0,0.00030958,2]
[319595026,1710885077953,-609.95,0.00030958,2]
[319595027,1710885077963,-500.0,0.00030958,2]
[319595028,1710885077973,-1536.94,0.00030958,2]
[319595029,1710885077982,-2552.49,0.00030958,2]
[319595030,1710885077992,-500.0,0.00030958,2]
[319595031,1710885078002,-2081.49,0.00030958,2]
[319595032,1710885078011,-500.0,0.00030958,2]
[319595033,1710885078020,-1715.16,0.00030958,2]
[319595034,1710885078029,-500.0,0.00030958,2]
[319595035,1710885078039,-1266.65,0.00030958,2]
[319595036,1710885078049,-1645.88,0.00030958,2]
[319595037,1710885078060,-500.0,0.00030958,2]
[319595038,1710885078069,-500.0,0.00030958,2]
[319595039,1710885078080,-500.0,0.00030958,2]
[319595040,1710885078089,-500.0,0.00030958,2]
[319595041,1710885078099,-500.0,0.00030958,2]
[319595042,1710885078109,-1784.06,0.00030958,2]
[319595043,1710885078118,-1425.44,0.00030958,2]
[319595044,1710885078128,-500.0,0.00030958,2]
[319595045,1710885078138,-645.99,0.00030958,2]
[319595046,1710885078147,-500.0,0.00030958,2]
[319595047,1710885078156,-500.0,0.00030958,2]
[319595048,1710885078166,-856.99,0.00030958,2]
[319595049,1710885078176,-1509.6,0.00030958,2]
[319595050,1710885078186,-500.0,0.00030958,2]
[319595051,1710885078196,-1899.37,0.00030958,2]
[319595052,1710885078206,-825.81,0.00030958,2]
[319595053,1710885078216,-500.0,0.00030958,2]
[319595054,1710885078226,-500.0,0.00030958,2]
[319595055,1710885078235,-500.0,0.00030958,2]
[319595056,1710885078244,-1668.46,0.00030958,2]
[319595057,1710885078254,-151.0,0.00030958,7]
[319595058,1710885078263,-500.0,0.00030958,2]
[319595059,1710885078273,-1817.59,0.00030958,2]
[319595060,1710885078283,-500.0,0.00030958,2]
[319595061,1710885078292,-612.56,0.00030958,2]
[319595062,1710885078302,-151.0,0.00030958,7]
[319595063,1710885078311,-500.0,0.00030958,2]
[319595064,1710885078322,-641.85,0.00030958,2]
[319595065,1710885078335,-500.0,0.00030958,2]
[319595066,1710885078345,-500.0,0.00030958,2]
[319595067,1710885078354,-3349.51,0.00030958,2]
[319595068,1710885078363,-1668.73,0.00030958,2]
[319595069,1710885078373,-500.0,0.00030958,2]
[319595070,1710885078382,-2185.83,0.00030958,2]
[319595071,1710885078391,-1047.88,0.00030958,2]
[319595072,1710885078401,-500.0,0.00030958,2]
[319595073,1710885078410,-709.8,0.00030958,2]
[319595074,1710885078420,-500.0,0.00030958,2]
[319595075,1710885078429,-3189.82,0.00030958,2]
[319595076,1710885078440,-500.0,0.00030958,2]
[319595077,1710885078452,-500.0,0.00030958,2]
[319595078,1710885078462,-2131.99,0.00030958,2]
[319595079,1710885078472,-500.0,0.00030958,2]
[319595080,1710885078482,-500.0,0.00030958,2]
[319595081,1710885078494,-500.0,0.00030958,2]
[319595082,1710885078503,-2548.99,0.00030958,2]
[319595083,1710885078513,-476.37465576,0.00030958,2]
[319595084,1710885078523,-1717.39,0.00030958,2]
[319595085,1710885078534,-500.0,0.00030958,2]
[319595086,1710885078545,-500.0,0.00030958,2]
[319595087,1710885078555,-500.0,0.00030958,2]
[319595088,1710885078564,-3499.12,0.00030958,2]
[319595089,1710885078575,-3366.11,0.00030958,2]
[319595090,1710885078585,-920.95,0.00030958,2]
[319595091,1710885078595,-1172.13,0.00030958,2]
[319595092,1710885078605,-762.14,0.00030958,2]
[319595093,1710885078614,-500.0,0.00030958,2]
[319595094,1710885078623,-500.0,0.00030958,2]
[319595095,1710885078633,-500.0,0.00030958,2]
[319595096,1710885078642,-500.0,0.00030958,2]
[319595097,1710885078651,-500.0,0.00030958,2]
[319595098,1710885078662,-651.81,0.00030958,2]
[319595099,1710885078671,-500.0,0.00030958,2]
[319595100,1710885078681,-2755.73,0.00030958,2]
[319595101,1710885078691,-500.0,0.00030958,2]
[319595102,1710885078700,-2171.26,0.00030958,2]
[319595103,1710885078710,-554.31,0.00030958,2]
[319595104,1710885078720,-913.38,0.00030958,2]
[319595105,1710885078729,-517.56,0.00030958,2]
[319595106,1710885078739,-500.0,0.00030958,2]
[319595107,1710885078749,-622.91,0.00030958,2]
[319595108,1710885078758,-1265.69,0.00030958,2]
[319595109,1710885078768,-576.05,0.00030958,2]
[319595110,1710885078777,-2191.46,0.00030958,2]
[319595111,1710885078786,-1378.12,0.00030958,2]
[319595112,1710885078796,-500.0,0.00030958,2]
[319595113,1710885078805,-500.0,0.00030958,2]
[319595114,1710885078815,-832.3,0.00030958,2]
[319595115,1710885078826,-3259.21,0.00030958,2]
[319595116,1710885078835,-516.5,0.00030958,2]
[319595117,1710885078844,-500.0,0.00030958,2]
[319595118,1710885078853,-500.0,0.00030958,2]
[319595119,1710885078863,-750.69,0.00030958,2]
[319595120,1710885078872,-500.0,0.00030958,2]
[319595121,1710885078881,-6099.55,0.00030958,2]
[319595122,1710885078890,-500.0,0.00030958,2]
[319595123,1710885078900,-705.53,0.00030958,2]
[319595124,1710885078910,-583.59,0.00030958,2]
[319595125,1710885078918,-510.82,0.00030958,2]
[319595126,1710885078927,-554.14,0.00030958,2]
[319595127,1710885078937,-500.0,0.00030958,2]
[319595128,1710885078947,-1054.91,0.00030958,2]
[319595129,1710885078957,-1769.12,0.00030958,2]
[319595130,1710885078966,-500.0,0.00030958,2]
[319595131,1710885078976,-500.0,0.00030958,2]
[319595132,1710885078986,-758.11,0.00030958,2]
[319595133,1710885078995,-500.0,0.00030958,2]
[319595134,1710885079005,-509.83795419,0.00030958,2]
[319595135,1710885079014,-500.0,0.00030958,2]
[319595136,1710885079023,-614.47,0.00030958,2]
[319595137,1710885079032,-500.0,0.00030958,2]
[319595138,1710885079041,-565.83,0.00030958,2]
[319595139,1710885079051,-3031.48,0.00030958,2]
[319595140,1710885079060,-500.0,0.00030958,2]
[319595141,1710885079070,-1793.05,0.00030958,2]
[319595142,1710885079081,-1813.36,0.00030958,2]
[319595143,1710885079090,-1781.25,0.00030958,2]
[319595144,1710885079100,-500.0,0.00030958,2]
[319595145,1710885079109,-500.0,0.00030958,2]
[319595146,1710885079119,-5948.25,0.00030958,2]
[319595147,1710885079128,-312.37197168,0.00030958,2]
[319595148,1710885079137,-500.0,0.00030958,2]
[319595149,1710885079147,-721.19,0.00030958,2]
[319595150,1710885079156,-500.0,0.00030958,2]
[319595151,1710885079166,-500.0,0.00030958,2]
[319595152,1710885079176,-2298.94,0.00030958,2]
[319595153,1710885079186,-500.0,0.00030958,2]
[319595154,1710885079196,-1467.68,0.00030958,2]
[319595155,1710885079206,-2048.3,0.00030958,2]
[319595156,1710885079216,-500.0,0.00030958,2]
[319595157,1710885079226,-500.0,0.00030958,2]
[319595158,1710885079236,-740.6,0.00030958,2]
[319595159,1710885079246,-500.0,0.00030958,2]
[319595160,1710885079256,-3725.64,0.00030958,2]
[319595161,1710885079267,-500.0,0.00030958,2]
[319595162,1710885079277,-7446.28,0.00030958,2]
[319595163,1710885079288,-1176.01,0.00030958,2]
[319595164,1710885079298,-500.0,0.00030958,2]
[319595165,1710885079307,-500.0,0.00030958,2]
[319595166,1710885079318,-1639.61,0.00030958,2]
[319595167,1710885079330,-500.0,0.00030958,2]
[319595168,1710885079340,-500.0,0.00030958,2]
[319595169,1710885079350,-814.35,0.00030958,2]
[319595170,1710885079361,-500.0,0.00030958,2]
[319595171,1710885079371,-1904.86,0.00030958,2]
[319595172,1710885079383,-531.89,0.00030958,2]
[319595173,1710885079393,-541.15,0.00030958,2]
[319595174,1710885079402,-500.0,0.00030958,2]
[319595175,1710885079412,-505.23,0.00030958,2]
[319595176,1710885079422,-500.0,0.00030958,2]
[319595177,1710885079431,-1726.69,0.00030958,2]
[319595178,1710885079443,-500.0,0.00030958,2]
[319595179,1710885079454,-706.92,0.00030958,2]
[319595180,1710885079634,-1397.11,0.00030958,2]
[319595181,1710885079645,-463.46602961,0.00030958,2]
[319595182,1710885079654,-644.74,0.00030958,2]
[319595183,1710885079664,-723.57,0.00030958,2]
[319595184,1710885079674,-2864.27,0.00030958,2]
[319595185,1710885079683,-500.0,0.00030958,2]
[319595186,1710885079692,-2584.9,0.00030958,2]
[319595187,1710885079701,-6961.76,0.00030958,2]
[319595188,1710885079711,-500.0,0.00030958,2]
[319595189,1710885079721,-1043.19,0.00030958,2]
[319595190,1710885079730,-915.89,0.00030958,2]
[319595191,1710885079740,-500.0,0.00030958,2]
[319595192,1710885079750,-1764.05,0.00030958,2]
[319595193,1710885079760,-1312.85,0.00030958,2]
[319595194,1710885079769,-1045.63,0.00030958,2]
[319595195,1710885079780,-961.87,0.00030958,2]
[319595196,1710885079789,-3736.86,0.00030958,2]
[319595197,1710885079799,-500.0,0.00030958,2]
[319595198,1710885079809,-838.02,0.00030958,2]
[319595199,1710885079818,-500.0,0.00030958,2]
[319595200,1710885079829,-1302.7,0.00030958,2]
[319595201,1710885079839,-2820.33,0.00030958,2]
[319595202,1710885079849,-500.0,0.00030958,2]
[319595203,1710885079859,-557.20495778,0.00030958,2]
[319595204,1710885079869,-500.0,0.00030958,2]
[319595205,1710885079879,-2171.52,0.00030958,2]
[319595206,1710885079889,-4792.93,0.00030958,2]
[319595207,1710885079899,-1199.36,0.00030958,2]
[319595208,1710885079909,-500.0,0.00030958,2]
[319595209,1710885079918,-500.0,0.00030958,2]
[319595210,1710885079928,-2181.61,0.00030958,2]
[319595211,1710885079937,-500.0,0.00030958,2]
[319595212,1710885079946,-500.0,0.00030958,2]
[319595213,1710885079956,-500.0,0.00030958,2]
[319595214,1710885079966,-500.0,0.00030958,2]
[319595215,1710885079975,-501.95,0.00030958,2]
[319595216,1710885079985,-1621.75,0.00030958,2]
[319595217,1710885079995,-500.0,0.00030958,2]
[319595218,1710885080004,-589.7,0.00030958,2]
[319595219,1710885080014,-855.86,0.00030958,2]
[319595220,1710885080024,-3227.64,0.00030958,2]
[319595221,1710885080034,-500.0,0.00030958,2]
[319595222,1710885080044,-863.41,0.00030958,2]
[319595223,1710885080053,-2111.52,0.00030958,2]
[319595224,1710885080063,-2950.43,0.00030958,2]
[319595225,1710885080074,-613.39754046,0.00030958,2]
[319595226,1710885080084,-500.0,0.00030958,2]
[319595227,1710885080094,-500.0,0.00030958,2]
[319595228,1710885080104,-5122.72,0.00030958,2]
[319595229,1710885080113,-500.0,0.00030958,2]
[319595230,1710885080123,-824.14,0.00030958,2]
[319595231,1710885080132,-10026.4,0.00030958,2]
[319595232,1710885080142,-500.0,0.00030958,2]
[319595233,1710885080151,-500.0,0.00030958,2]
[319595234,1710885080162,-500.0,0.00030958,2]
[319595235,1710885080172,-2275.12,0.00030958,2]
[319595236,1710885080182,-500.0,0.00030958,2]
[319595237,1710885080192,-565.71,0.00030958,2]
[319595238,1710885080202,-1033.05,0.00030958,2]
[319595239,1710885080212,-486.68801223,0.00030958,2]
[319595240,1710885080222,-126732.2,0.00030958,2]
[319595241,1710885080232,-504.07,0.00030958,2]
[319595242,1710885080242,-500.0,0.00030958,2]
[319595243,1710885080252,-500.0,0.00030958,2]
[319595244,1710885080262,-4852.56,0.00030958,2]
[319595245,1710885080272,-500.0,0.00030958,2]
[319595246,1710885080282,-2937.74,0.00030958,2]
[319595247,1710885080293,-1976.68,0.00030958,2]
[319595248,1710885080303,-777.71,0.00030958,2]
[319595249,1710885080312,-1133.54,0.00030958,2]
[319595250,1710885080323,-500.0,0.00030958,2]
[319595251,1710885080333,-2119.46,0.00030958,2]
[319595252,1710885080343,-7711.4,0.00030958,2]
[319595253,1710885080353,-524.36,0.00030958,2]
[319595254,1710885080363,-500.0,0.00030958,2]
[319595255,1710885080373,-500.0,0.00030958,2]
[319595256,1710885080383,-7310.51,0.00030958,2]
[319595257,1710885080393,-14442.37,0.00030958,2]
[319595258,1710885080403,-500.0,0.00030958,2]
[319595259,1710885080417,-500.0,0.00030958,2]
[319595260,1710885080428,-500.0,0.00030958,2]
[319595261,1710885080438,-5376.56,0.00030958,2]
[319595262,1710885080450,-4230.03,0.00030958,2]
[319595263,1710885080461,-582.24,0.00030958,2]
[319595264,1710885080473,-751.89,0.00030958,2]
[319595265,1710885080484,-542.91,0.00030958,2]
[319595266,1710885080495,-500.0,0.00030958,2]
[319595267,1710885080505,-500.0,0.00030958,2]
[319595268,1710885080516,-500.0,0.00030958,2]
[319595269,1710885080526,-1949.45,0.00030958,2]
[319595270,1710885080536,-5623.75,0.00030958,2]
[319595271,1710885080546,-636.0,0.00030958,2]
[319595272,1710885080557,-500.0,0.00030958,2]
[319595273,1710885080568,-1033.59,0.00030958,2]
[319595274,1710885080580,-5877.04,0.00030958,2]
[319595275,1710885080591,-825.5,0.00030958,2]
[319595276,1710885080601,-521.04,0.00030958,2]
[319595277,1710885080612,-503.31,0.00030958,2]
[319595278,1710885080622,-3068.4,0.00030958,2]
[319595279,1710885080632,-500.0,0.00030958,2]
[319595280,1710885080643,-2857.27,0.00030958,2]
[319595281,1710885080653,-500.0,0.00030958,2]
[319595282,1710885080663,-631.3,0.00030958,2]
[319595283,1710885080674,-814.62,0.00030958,2]
[319595284,1710885080685,-500.0,0.00030958,2]
[319595285,1710885080695,-2550.99,0.00030958,2]
[319595286,1710885080705,-500.0,0.00030958,2]
[319595287,1710885080716,-500.0,0.00030958,2]
[319595288,1710885080726,-1149.73,0.00030958,2]
[319595289,1710885080737,-7487.75,0.00030958,2]
[319595290,1710885080748,-1638.18,0.00030958,2]
[319595291,1710885080758,-7814.4,0.00030958,2]
[319595292,1710885080768,-705.8,0.00030958,2]
[319595293,1710885080778,-529.96,0.00030958,2]
[319595294,1710885080788,-500.0,0.00030958,2]
[319595295,1710885080798,-594.04,0.00030958,2]
[319595296,1710885080808,-500.0,0.00030958,2]
[319595297,1710885080818,-500.0,0.00030958,2]
[319595298,1710885080831,-500.0,0.00030958,2]
[319595299,1710885080841,-3016.27,0.00030958,2]
[319595300,1710885080851,-500.0,0.00030958,2]
[319595301,1710885080862,-500.0,0.00030958,2]
[319595302,1710885080872,-38480.53,0.00030958,2]
[319595303,1710885080883,-968.19,0.00030958,2]
[319595304,1710885080893,-2988.01,0.00030958,2]
[319595305,1710885080904,-767.81,0.00030958,2]
[319595306,1710885080914,-500.0,0.00030958,2]
[319595307,1710885080924,-3358.0,0.00030958,2]
[319595308,1710885080935,-500.0,0.00030958,2]
[319595309,1710885080945,-500.0,0.00030958,2]
[319595310,1710885080955,-2995.65,0.00030958,2]
[319595311,1710885080966,-500.0,0.00030958,2]
[319595312,1710885080976,-2879.31,0.00030958,2]
[319595313,1710885080987,-3475.26,0.00030958,2]
[319595314,1710885080997,-817.64,0.00030958,2]